Cogmind - Beta 17.1 @@@ ROGUE MODE // 2026.09.16 @ 16:53:26 Player: MAXX-P31 Result: Destroyed self with Grenade Launcher Performance ------------- Evolutions (0) 0 Regions Visited (3) 600 Robots Destroyed (26) 130 Value Destroyed (363) 363 Prototype IDs (0) 0 Alien Tech Used (0) 0 Bonus (-892) -892 TOTAL SCORE: 201 Bonus ------- Friendly Fire -892 Cogmind --------- Core Integrity 0/250 Matter 152/300 Energy 100/100 System Corruption 2% Temperature Cool (0) Movement Rolling (100) Location -10/Exiles Parts ------- > --- POWER (1) -------- (None) > --- PROPULSION (2) --- Compact Wheel Compact Wheel > --- UTILITY (2) ------ Large Storage Unit Seismic Detector > --- WEAPON (2) ------- Grenade Launcher Grenade Launcher > --- INVENTORY (15) --- Medium Storage Unit Large Storage Unit High-capacity Battery (250) Seismic Detector Hacking Suite Medium Laser Small Laser Peak State ------------ > --- POWER ------------ Ion Engine > --- PROPULSION ------- Light Treads Light Treads > --- UTILITY ---------- Large Storage Unit Seismic Detector > --- WEAPON ----------- Medium Laser Light Assault Rifle > --- INVENTORY -------- Light Ion Engine Light Treads Compact Wheel Medium Storage Unit Large Storage Unit High-capacity Battery Seismic Detector Small Laser Grenade Launcher Hammer [Rating: 8] Favorites ----------- Power Ion Engine Engine Ion Engine Propulsion Light Treads Treads Light Treads Wheel Compact Wheel Utility Seismic Detector Device Seismic Detector Storage Large Storage Unit Weapon Medium Laser Energy Gun Medium Laser Ballistic Gun Light Assault Rifle Launcher Grenade Launcher Impact Weapon Hammer Build | -11 -10 -10 -10 ------- Run | Yrd Mat Min Exi Slots Evolved . | . . . . Power . | . . . . Propulsion . | . . . . Utility . | . . . . Weapon . | . . . . Parts Attached 19 | 7 6 2 4 Power 3 | 1 1 1 . Engine 3 | 1 1 1 . Core . | . . . . Reactor . | . . . . Propulsion 6 | 2 1 . 3 Treads 3 | 2 1 . . Leg . | . . . . Wheel 3 | . . . 3 Hover . | . . . . Flight . | . . . . Utility 3 | 2 1 . . Device 1 | 1 . . . Storage 2 | 1 1 . . Processor . | . . . . Hackware . | . . . . Protection . | . . . . Artifact . | . . . . Weapon 7 | 2 3 1 1 Energy Gun 2 | 1 1 . . Energy Cannon . | . . . . Ballistic Gun 1 | 1 . . . Ballistic Cannon . | . . . . Launcher 3 | . 2 . 1 Special Weapon . | . . . . Impact Weapon 1 | . . 1 . Slashing Weapon . | . . . . Piercing Weapon . | . . . . Special Melee Weapon . | . . . . Unidentified Prototypes . | . . . . Parts Lost 8 | . . . 8 Power 2 | . . . 2 Propulsion 4 | . . . 4 Utility . | . . . . Weapon 2 | . . . 2 Highest Loss Streak 8 | . . . 8 To Critical Strikes 5 | . . . 5 Average Backups 10 | 1 8 13 12 Power 1 | . 1 1 . Propulsion 2 | . 1 3 3 Utility 4 | . 3 5 5 Weapon 3 | . 2 3 3 Tool/Special . | . . . . Unused Backups 7 | . 1 . 6 Power 1 | . 1 . . Propulsion . | . . . . Utility 5 | . . . 5 Weapon 1 | . . . 1 Tool/Special . | . . . . Average Slot Usage (%) 99 | . 100 100 94 Engine 13 | . 14 14 12 Treads 27 | . 28 28 19 Device 14 | . 14 14 14 Storage 14 | . 14 14 14 Energy Gun 13 | . 14 14 7 Ballistic Gun 4 | . 9 . 3 Launcher 6 | . 4 9 4 Impact Weapon 3 | . . 4 11 Peak Build Rating 8 | 7 8 8 8 Average Rating 7 | 5 7 8 7 On Entrance 5 | . 7 8 8 Avg Prop Armor Cover (%) . | . . . . Naked Turns . | . . . . Heaviest Build 31 | 12 31 31 28 Greatest Support 40 | 40 40 40 40 Greatest Overweight (x) 1 | . . . 1 Average Overweight (x) . | . . . . Largest Inventory Capacity 15 | 8 15 15 15 Average Capacity 13 | 7 12 15 15 Most Carried 15 | 4 12 15 15 Average Carried 10 | 1 9 13 12 Final Capacity 15 | 8 15 15 15 Final Carried 15 | 4 11 15 7 Class Distribution -------------------- 100% | Mutant Dominant Class ---------------- Mutant | -10/Materials Mutant | -10/Mines Mutant | -10/Exiles Resources | -11 -10 -10 -10 ----------- Run | Yrd Mat Min Exi Matter Collected 530 | 240 162 128 . Remotely . | . . . . Salvage Created 654 | 133 245 262 14 Parts 47 | 7 29 11 . Haulers Intercepted 1 | . 1 . . Recyclers Shooed 2 | . . 2 . Parts Field Recycled . | . . . . Retrieved Matter . | . . . . Parts Self-Destructed . | . . . . Prevented . | . . . . Parts Restored . | . . . . Kills | -11 -10 -10 -10 ------- Run | Yrd Mat Min Exi Combat Hostiles Destroyed 16 | . 7 6 3 Guns 2 | . 2 . . AOE 13 | . 5 5 3 Classes Destroyed 9 | 2 5 1 1 Worker 2 | . . 2 . Builder 4 | . 2 2 . Tunneler 2 | 2 . . . Hauler 1 | . 1 . . Recycler 3 | 1 . 2 . Operator 1 | . 1 . . Swarmer 6 | . 3 3 . Grunt 6 | . 4 2 . Assembled 7 | . . . 7 Best Kill Streak 7 | 2 7 4 3 Combat Bots Only 5 | . 5 3 3 Max Kills in Single Turn 4 | 1 3 2 4 Gunslinging . | . . . . Exploded 3 | . 3 2 3 Melee . | . . . . Uniques/NPCs Destroyed 1 | . . 1 . YI-UF0 (-10/Mines) Combat | -11 -10 -10 -10 -------- Run | Yrd Mat Min Exi Hostile Shots Fired 80 | . 19 10 51 Missed 16 | . 5 3 8 Hits 64 | . 14 7 43 Projectile 64 | . 14 7 43 AOE 5 | . . 5 . Critical Strikes 19 | . 1 . 18 Damage Taken 1253 | . 215 257 781 Core 252 | . 31 39 182 Absorbed by Shields . | . . . . Core Remaining (%) 100 | 100 . . . Volleys Fired 42 | 13 19 6 4 Largest 2 | 2 2 2 2 Hottest 80 | 70 80 80 60 Shots Fired 70 | 26 30 7 7 Gun 48 | 26 21 1 . Cannon . | . . . . Launcher 22 | . 9 6 7 Special . | . . . . Kinetic 23 | 13 10 . . Thermal 25 | 13 11 1 . Explosive 22 | . 9 6 7 Electromagnetic . | . . . . Robot Hit Streak 12 | 8 10 12 3 Robot Miss Streak 3 | 1 3 1 1 Penetration Max . | . . . . Secondary Targets . | . . . . Shots Hit Robots 57 | 17 16 10 14 Core Hits 51 | 5 22 11 13 Critical Kills . | . . . . Critical Parts Destroyed 3 | . . 2 1 Critical Strikes 5 | 1 1 2 1 Burn 2 | 1 1 . . Smash 3 | . . 2 1 Melee Attacks 21 | . . 8 13 Impact 21 | . . 8 13 Slashing . | . . . . Piercing . | . . . . Sneak Attacks 5 | . . 5 . Combat Hostiles . | . . . . Follow-up Attacks . | . . . . Damage Inflicted 2194 | 173 541 798 682 Guns 359 | 173 186 . . Cannons . | . . . . Explosions 1228 | . 331 466 431 Melee 548 | . . 297 251 Ramming 59 | . 24 35 . Kinetic 114 | 57 57 . . Thermal 245 | 116 129 . . Explosive 1228 | . 331 466 431 Electromagnetic . | . . . . Impact 548 | . . 297 251 Slashing . | . . . . Piercing . | . . . . Highest Corruption 2 | . 2 2 2 Average Corruption 2 | . 2 2 2 Corruption Purged . | . . . . Corruption Blocked . | . . . . Effects 15 | . 3 9 3 Message Errors 5 | . 2 1 2 Matter Fused 3 | . 1 1 1 Heat Flow Errors 2 | . . 2 . Data Loss (minor) 2 | . . 2 . Data Loss (major) 2 | . . 2 . Alerts 1 | . . 1 . Overload Shots . | . . . . Overflow Damage 199 | . 1 150 48 Projectiles . | . . . . Explosions 48 | . 1 22 25 Melee 151 | . . 128 23 Knockbacks 6 | . . 4 2 Impact 6 | . . 4 2 Kinetic . | . . . . Secondary . | . . . . Self-Inflicted Damage 158 | . 36 34 88 Shots 7 | . 1 3 3 Rammed 10 | . 5 5 . Targets Rammed 10 | . 5 5 . Kicked . | . . . . Crushed . | . . . . Highest Temperature 268 | 100 104 268 . Average Temperature 55 | 39 35 108 . Received Heat Transfer 66 | . 60 6 . Siege Activations . | . . . . Martial Activations . | . . . . Shielding Activations . | . . . . Robots Disrupted . | . . . . Combat Hostiles . | . . . . Robots Corrupted 4 | . . 4 . Combat Hostiles 1 | . . 1 . Parts Fried 7 | . . 7 . Impact Corruptions 9 | . . 7 2 Robots Melted . | . . . . Combat Hostiles . | . . . . Parts Melted . | . . . . Heat Transferred 851 | 407 444 . . Parts Sabotaged . | . . . . Parts Stolen . | . . . . Parts Stripped . | . . . . Power Chain Reactions . | . . . . Alert | -11 -10 -10 -10 ------- Run | Yrd Mat Min Exi Maximum Alert Level . | . . . . Low Security (%) 100 | 100 100 100 . Level 1 . | . . . . Level 2 . | . . . . Level 3 . | . . . . Level 4 . | . . . . Level 5 . | . . . . High Security . | . . . . Max Security . | . . . . Peak Influence 158 | 5 158 131 . Initial 2 | . . 2 . Average 41 | 1 64 28 . Influence Increases 453 | 15 259 179 . Destroy 0b10 Robot/C 240 | . 140 100 . Destroy 0b10 Robot/NC 65 | 15 20 30 . Destroy Leader 62 | . 42 20 . Successful Hack 13 | . 13 . . Destroy Structure 73 | . 44 29 . Influence Decreases 453 | 15 252 186 . Entered New Map 5 | . . 5 . Time Decay 448 | 15 252 181 . Squads Dispatched 2 | . 2 . . Investigation 1 | . 1 . . Extermination . | . . . . Reinforcement 1 | . 1 . . Assault . | . . . . Garrison . | . . . . Intercept . | . . . . Searches Triggered . | . . . . Construction Impeded . | . . . . Haulers Reinforced . | . . . . Active Scanning Responses . | . . . . Cargo Convoy Interrupts . | . . . . Stealth | -11 -10 -10 -10 --------- Run | Yrd Mat Min Exi Distress Signals 2 | . 2 . . Communications Jammed . | . . . . Distress Signals . | . . . . Times Spotted 29 | . 19 6 4 Peak Tracking Total 7 | . 7 3 5 Tactical Retreats . | . . . . Traps | -11 -10 -10 -10 ------- Run | Yrd Mat Min Exi Traps Triggered 3 | . 3 . . Indirectly . | . . . . Trap Hack Attempts . | . . . . Triggered . | . . . . Disarmed . | . . . . Reprogrammed . | . . . . Reused . | . . . . Traps Extracted . | . . . . Installed . | . . . . Triggered . | . . . . Machines | -11 -10 -10 -10 ---------- Run | Yrd Mat Min Exi Machines Disabled 4 | . . . 4 Max in Single Turn 2 | . . . 2 Machines Repaired . | . . . . Machines Dismantled . | . . . . Machines Sabotaged . | . . . . Overloaded Fab Kills . | . . . . Hacking | -11 -10 -10 -10 --------- Run | Yrd Mat Min Exi Machines Accessed 5 | . 5 . . Terminals 5 | . 5 . . Fabricators . | . . . . Repair Stations . | . . . . Recycling Units . | . . . . Scanalyzers . | . . . . Garrison Access . | . . . . Total Hacks 10 | . 10 . . Successful 4 | . 4 . . Failed 5 | . 5 . . Catastrophic . | . . . . Database Lockouts 1 | . 1 . . Manual 10 | . 10 . . Terminals 10 | . 10 . . Fabricators . | . . . . Repair Stations . | . . . . Recycling Units . | . . . . Scanalyzers . | . . . . Garrison Access . | . . . . Terminal Hacks 1 | . 1 . . Robot Analysis 1 | . 1 . . Fabricator Hacks . | . . . . Repair Station Hacks . | . . . . Recycling Unit Hacks . | . . . . Scanalyzer . | . . . . Garrison Access Hacks . | . . . . Unauthorized Hacks 3 | . 3 . . Terminals 3 | . 3 . . Botnet 3 | . 3 . . Fabricators . | . . . . Repair Stations . | . . . . Recycling Units . | . . . . Scanalyzers . | . . . . Garrison Access . | . . . . Data Cores Recovered 1 | . 1 . . Used . | . . . . Hacking Detections 4 | . 4 . . Full Trace Events . | . . . . Feedback Events . | . . . . Feedback Blocked . | . . . . Robot Schematics Acquired . | . . . . Robots Built . | . . . . Authchips . | . . . . Time . | . . . . Total Robot Build Rating . | . . . . Part Schematics Acquired . | . . . . Parts Built . | . . . . Authchips . | . . . . Time . | . . . . Total Part Build Rating . | . . . . Part Studies Acquired . | . . . . Parts Repaired . | . . . . Time . | . . . . Parts Recycled . | . . . . Recycled Matter . | . . . . Retrieved Matter . | . . . . Retrieved Components . | . . . . Parts Scanalyzed . | . . . . Part Schematics Acquired . | . . . . Parts Damaged . | . . . . Bothacking | -11 -10 -10 -10 ------------ Run | Yrd Mat Min Exi Used RIF Installer . | . . . . Robots Hacked . | . . . . Non-combat . | . . . . Combat . | . . . . Robot Hacks Applied . | . . . . Relay Couplers Released . | . . . . Fabnet Peak Effective % . | . . . . Robots Rewired . | . . . . Allies Hacked . | . . . . Hacks Repelled . | . . . . Allies | -11 -10 -10 -10 -------- Run | Yrd Mat Min Exi Total Allies . | . . . . Largest Group . | . . . . Highest-Rated Group . | . . . . Highest-Rated Ally . | . . . . Total Orders . | . . . . Ally Attacks . | . . . . Total Damage . | . . . . Kills . | . . . . Allies Corrupted . | . . . . Allies Melted . | . . . . Intel | -11 -10 -10 -10 ------- Run | Yrd Mat Min Exi Active Infowar (turns) 1670 | 20 660 809 181 Seismic 1670 | 20 660 809 181 Robot Analysis Total 1 | . 1 . . Derelict Logs Recovered 1 | . . 1 . Drone Launches . | . . . . Drone Recoveries . | . . . . Exploration | -11 -10 -10 -10 ------------- Run | Yrd Mat Min Exi Turns Passed 1781 | 131 660 809 181 Spaces Moved 962 | 51 363 474 74 Core 2 | 2 . . . Treads 948 | 49 363 474 62 Legs . | . . . . Wheels 12 | . . . 12 Hover . | . . . . Flight . | . . . . Fastest Speed 50 | 50 160 160 100 Average Speed 159 | 155 160 160 151 Slowest Speed 240 | 160 160 160 240 Overloaded Moves . | . . . . Propulsion Burnouts . | . . . . Robots Hopped . | . . . . Potential Cave-ins . | . . . . Cave-ins Triggered . | . . . . Exploration Rate (%) 45 | 3 73 88 17 Regions Visited 3 Branch Regions 2 Pre-discovered Areas 1 | . . 1 . Known Exits Taken . | . . . . Unknown Exits Taken 3 | 1 1 1 . Scrap Searched 1 | . . 1 . Spaces Dug . | . . . . Terrain Destroyed 107 | . 52 41 14 Melee . | . . . . Projectile . | . . . . AOE 107 | . 52 41 14 Terrain Rammed . | . . . . Walls Destroyed . | . . . . Machines Disabled . | . . . . Actions | -11 -10 -10 -10 --------- Run | Yrd Mat Min Exi Total 1099 | 76 410 500 113 Wait 20 | 2 5 3 10 Move 959 | 50 362 473 74 Hop . | . . . . Pick Up 15 | 4 8 3 . Fast Attach 7 | 7 . . . Attach 7 | . . . 7 Detach . | . . . . Swap 13 | . 7 2 4 Drop 5 | . 4 . 1 Fire 42 | 13 19 6 4 Melee 21 | . . 8 13 Ram . | . . . . Kick . | . . . . Crush 10 | . 5 5 . Escape Stasis . | . . . . Rewire . | . . . . Trap . | . . . . Miscellaneous . | . . . . Route ------- -11/Scrapyard -10/Materials (discovered 3 exits: [*Mat x2] / [*Min]) -10/Mines (discovered 4 exits: [*Mat x2] / [*Exi] / [*Sub]) -10/Exiles History --------- Turn | Location | Event 7 | -11/Scrapyard | Discovered new exit (range 15) 132 | -11/Scrapyard | Entered Materials 266 | -10/Materials | Discovered new exit (range 16) 302 | -10/Materials | Build established: Mutant 371 | -10/Materials | Discovered new exit (range 13) 640 | -10/Materials | Discovered new exit (range 16) 688 | -10/Materials | Central database locked down 792 | -10/Materials | Entered Mines 819 | -10/Mines | Discovered new exit (range 15) 891 | -10/Mines | Learned 2 Materials zone layouts 942 | -10/Mines | Deemed a non-threat by the Exiles lab entrance 1130 | -10/Mines | YI-UF0 nonchalantly dropped a Grenade Launcher on the ground 1237 | -10/Mines | Discovered new exit (range 10) 1292 | -10/Mines | Discovered new exit (range 12) 1338 | -10/Mines | Destroyed YI-UF0 1485 | -10/Mines | Learned location of Storage (-8) 1595 | -10/Mines | Discovered new exit (range 5) 1601 | -10/Mines | Entered Exiles 1642 | -10/Exiles | Met 8R-AWN 1671 | -10/Exiles | Met EX-HEX 1699 | -10/Exiles | Attacked by the Exiles 1723 | -10/Exiles | Core integrity fell below 50% 1724 | -10/Exiles | Murdered 4 allies 1759 | -10/Exiles | Core integrity fell below 20% 1782 | -10/Exiles | Destroyed self with Grenade Launcher Last Messages --------------- 01754_ Hammer destroyed. 01758_ Penetrated by HV Slug. 01758_ Lgt. Assault Rifle destroyed. 01758_ Penetrated by HV Slug. 01760_ HV Slug penetrates Machine. 01760_ Penetrated by HV Slug. 01760_ HV Slug penetrates Machine. 01762_ Penetrated by HV Slug. 01762_ HV Slug penetrates Wall. 01762_ Penetrated by HV Slug. 01762_ HV Slug penetrates Wall. 01764_ Penetrated by HV Slug. 01764_ Critical hit (Destroy). 01764_ Lgt. Ion Engine destroyed. 01764_ HV Slug penetrates Wall. 01764_ Penetrated by HV Slug. 01764_ HV Slug penetrates Wall. 01779_ Machine disabled. 01780_ Penetrated by HV Slug. 01780_ HV Slug penetrates Wall. Map ----- +----------------------------------------------------+ | ?????????????????????????????????????????????????? | | ?????????????????????????????????????????????????? | | ?????????????????????????????????????????????????? | | ?????????????????????????????????????????????????? | | ?????????????????????????????????????????????????? | | ?????????????????????????????????????????????????? | | ?????????????????????????????????????????????????? | | ?????????????????????????????????????????????????? | | ?????????????????????????????????????????????????? | | ?????????????????????????????????????????????????? | | ?????????????????????????????????????????????????? | | ?????????????????????????????????????????????????? | | ???????????????????????????????????????????? ??? | | ??? ???????????????????????????????????????# #?? | | ?" "????????????????????????????????????# ##? | | " "??????????????????????????????????? #? | | ?????????????#####???????????????# #? | | " "#??????????##" #??????????????## ?? | | "#?????????#" #?????????????## #??? | | ""???????##" ####??????????# #??? | | "?????### ;#????????### #???? | | ##???# ########## #???? | | ##?## #""""## #????? | | ### g * ##???? | | ** #???? | | @ ##??? | | ###" ""#### ###? | | # ""##?#######??#### * ## | | ######??????????????##### | | ##???????????????????????### | | " ##??????????????????????????### | | ?""" "??????????????????????????????### | | ??#" "#???????????????????????????????#" | | ??##" ????????????????????????????????#### | | ???## # ???????????????????????????????????# | | ????########???????????????????????????????????## | | ????????????????????????????????????????????????## | | ?????????????????????????????????????????????????? | | ?????????????????????????????????????????????????? | | ?????????????????????????????????????????????????? | | ?????????????????????????????????????????????????? | | ?????????????????????????????????????????????????? | | ?????????????????????????????????????????????????? | | ?????????????????????????????????????????????????? | | ?????????????????????????????????????????????????? | | ?????????????????????????????????????????????????? | | ?????????????????????????????????????????????????? | | ?????????????????????????????????????????????????? | | ?????????????????????????????????????????????????? | | ?????????????????????????????????????????????????? | +----------------------------------------------------+ Best States ------------- Heat Dissipation 25 Energy Generation 10 Energy Capacity 250 Matter Stores 300 Matter Capacity 300 Sight Range 16 Terrain Scan Density 10 Evasion (%) 40 Recoil Reduction 2 Item Schematics ----------------- None Robot Schematics ------------------ None Fabricated ------------ Nothing Repaired ---------- Nothing Studied --------- None Alien Tech Used ----------------- None Achievements -------------- None Challenges ------------ None Game ------ Seed SurveybotShieldLeg Manual? 0 Play Time 00:11:59 Cumulative 343.7 hours Start 2026.09.16 @ 16:41:21 End 2026.09.16 @ 16:53:26 Sessions 1 Manual Loads 0 Difficulty Rogue Special Mode None Game No. 177 Rogue 177 Adventurer 0 Explorer 0 Win Type - Total 8 Types 8/0/0/0/0/0/0/0/0/0 Lore% 57 Gallery% 63 Achievement% 46 Wizard Run 0 Options --------- Layout 1 ASCII 0 Keyboard 0 Movement Numpad Keybinds 0 Fullscreen 1 Font 24/Smallcaps Map View 50x35 Zoom Use 0% Tactical HUD 1 Map Filters NONE Filters NONE Steam 1 RUN: efb4193c-b10c-490b-b6c6-f7be38ff5369